[Event "GrandPrix_29.05"]
[Site "Chess.com"]
[Date "2020.05.29"]
[Round "8"]
[White "DenisQ"]
[Black "arminmusovic"]
[Result "1-0"]
[WhiteElo "2245"]
[BlackElo "2229"]
[TimeControl "600+2"]
[EndTime "12:50:43 PDT"]
[Termination "DenisQ won by resignation"]

1. c4 {[%clk 0:09:56]} 1... e5 {[%clk 0:10:00.9]} 2. Nc3 {[%clk 0:09:55.4]} 2...
Nf6 {[%clk 0:10:02.3]} 3. g3 {[%clk 0:09:49.8]} 3... c6 {[%clk 0:10:03.1]} 4.
Nf3 {[%clk 0:09:27.2]} 4... e4 {[%clk 0:10:02.4]} 5. Nd4 {[%clk 0:09:27.9]} 5...
d5 {[%clk 0:10:01.3]} 6. cxd5 {[%clk 0:09:28.2]} 6... Bc5 {[%clk 0:09:59.3]} 7.
Nb3 {[%clk 0:09:20.6]} 7... Bb6 {[%clk 0:10:00.5]} 8. d3 {[%clk 0:08:41.7]} 8...
exd3 {[%clk 0:09:59.5]} 9. Qxd3 {[%clk 0:08:33.2]} 9... cxd5 {[%clk 0:09:58.1]}
10. Bg2 {[%clk 0:08:24.9]} 10... Be6 {[%clk 0:09:53.3]} 11. O-O {[%clk
0:08:18.4]} 11... Nc6 {[%clk 0:09:27.9]} 12. Bg5 {[%clk 0:08:11.9]} 12... Ne5
{[%clk 0:08:14.1]} 13. Qb5+ {[%clk 0:07:19.3]} 13... Bd7 {[%clk 0:07:27.7]} 14.
Qb4 {[%clk 0:07:18.4]} 14... Nc6 {[%clk 0:07:24.7]} 15. Qh4 {[%clk 0:06:58.1]}
15... d4 {[%clk 0:07:17.1]} 16. Ne4 {[%clk 0:06:34.8]} 16... h6 {[%clk
0:05:36.6]} 17. Nxf6+ {[%clk 0:06:26.4]} 17... Kf8 {[%clk 0:05:38.1]} 18. Nh7+
{[%clk 0:06:14.6]} 18... Kg8 {[%clk 0:05:39.7]} 19. Bxd8 {[%clk 0:06:14.9]}
19... d3 {[%clk 0:05:41.6]} 1-0

[Event "GrandPrix_29.05"]
[Site "Chess.com"]
[Date "2020.05.29"]
[Round "8"]
[White "etserga"]
[Black "SavelievAlexei"]
[Result "1-0"]
[WhiteElo "2164"]
[BlackElo "2187"]
[TimeControl "600+2"]
[EndTime "12:51:08 PDT"]
[Termination "etserga won by resignation"]

1. Nf3 {[%clk 0:09:57.6]} 1... Nf6 {[%clk 0:10:00.4]} 2. c4 {[%clk 0:09:57.7]}
2... c5 {[%clk 0:10:01.8]} 3. Nc3 {[%clk 0:09:57.1]} 3... Nc6 {[%clk 0:10:01.9]}
4. d4 {[%clk 0:09:57.4]} 4... cxd4 {[%clk 0:10:03.8]} 5. Nxd4 {[%clk 0:09:58]}
5... e6 {[%clk 0:10:05.3]} 6. g3 {[%clk 0:09:58.4]} 6... b6 {[%clk 0:10:05.4]}
7. Bg2 {[%clk 0:09:55.4]} 7... Bb7 {[%clk 0:10:06.4]} 8. Ndb5 {[%clk 0:09:55.4]}
8... d6 {[%clk 0:09:56.4]} 9. Bf4 {[%clk 0:09:49.4]} 9... e5 {[%clk 0:09:57.2]}
10. Bg5 {[%clk 0:09:49.7]} 10... a6 {[%clk 0:09:56.6]} 11. Bxf6 {[%clk
0:09:45.5]} 11... gxf6 {[%clk 0:09:56.8]} 12. Na3 {[%clk 0:09:45.6]} 12... Rc8
{[%clk 0:09:53.8]} 13. O-O {[%clk 0:09:41.8]} 13... h5 {[%clk 0:09:55]} 14. Qd2
{[%clk 0:09:28]} 14... h4 {[%clk 0:09:55.3]} 15. Nd5 {[%clk 0:09:27.6]} 15...
Bh6 {[%clk 0:09:50.8]} 16. Qd3 {[%clk 0:09:15.7]} 16... Ba8 {[%clk 0:09:36.5]}
17. Rad1 {[%clk 0:09:05.3]} 17... Nd4 {[%clk 0:09:33]} 18. e3 {[%clk 0:08:54.6]}
18... Ne6 {[%clk 0:09:33.8]} 19. f4 {[%clk 0:08:28.8]} 19... hxg3 {[%clk
0:09:32.8]} 20. hxg3 {[%clk 0:08:28.1]} 20... Bg7 {[%clk 0:09:05.9]} 21. Qf5
{[%clk 0:08:21.8]} 21... Rh6 {[%clk 0:08:32.8]} 22. fxe5 {[%clk 0:07:39.4]}
22... dxe5 {[%clk 0:08:34.7]} 23. Nc3 {[%clk 0:07:38.6]} 23... Qe7 {[%clk
0:08:26.7]} 24. Bd5 {[%clk 0:07:09.7]} 24... Rg6 {[%clk 0:08:16.4]} 25. Kg2
{[%clk 0:07:00.9]} 25... Bh6 {[%clk 0:07:41.3]} 26. Ne4 {[%clk 0:06:44.3]} 26...
Rd8 {[%clk 0:07:29]} 27. Nxf6+ {[%clk 0:06:05.5]} 27... Kf8 {[%clk 0:07:28.8]}
28. Nd7+ {[%clk 0:05:50.2]} 28... Kg8 {[%clk 0:07:06.7]} 29. Nxe5 {[%clk
0:05:39.6]} 29... Rg5 {[%clk 0:07:02.7]} 30. Qxf7+ {[%clk 0:05:35]} 30... Qxf7
{[%clk 0:07:00.9]} 31. Nxf7 {[%clk 0:05:35.3]} 1-0

[Event "GrandPrix_29.05"]
[Site "Chess.com"]
[Date "2020.05.29"]
[Round "8"]
[White "Gabrielian_Artur"]
[Black "tsvet2005"]
[Result "0-1"]
[WhiteElo "2365"]
[BlackElo "2353"]
[TimeControl "600+2"]
[EndTime "12:51:16 PDT"]
[Termination "tsvet2005 won by resignation"]

1. e4 {[%clk 0:10:01.9]} 1... c5 {[%clk 0:10:00.8]} 2. Nc3 {[%clk 0:10:01.1]}
2... d6 {[%clk 0:10:01.9]} 3. d4 {[%clk 0:10:01.6]} 3... cxd4 {[%clk 0:10:01.3]}
4. Qxd4 {[%clk 0:10:02.7]} 4... Nc6 {[%clk 0:10:01.9]} 5. Qd2 {[%clk 0:10:03.7]}
5... Nf6 {[%clk 0:09:43.7]} 6. b3 {[%clk 0:10:03.5]} 6... e6 {[%clk 0:09:35]} 7.
Bb2 {[%clk 0:10:03.9]} 7... d5 {[%clk 0:09:36.3]} 8. exd5 {[%clk 0:10:03.7]}
8... exd5 {[%clk 0:09:38.2]} 9. Bd3 {[%clk 0:10:02.4]} 9... d4 {[%clk
0:09:13.8]} 10. Qe2+ {[%clk 0:09:45.7]} 10... Be6 {[%clk 0:09:07.1]} 11. Ne4
{[%clk 0:09:44.6]} 11... Bb4+ {[%clk 0:08:58.2]} 12. Kf1 {[%clk 0:09:45.3]}
12... O-O {[%clk 0:08:46.9]} 13. Nxf6+ {[%clk 0:09:44.4]} 13... Qxf6 {[%clk
0:08:48.8]} 14. Qe4 {[%clk 0:09:34.4]} 14... g6 {[%clk 0:08:47.7]} 15. Nf3
{[%clk 0:09:25.3]} 15... Rad8 {[%clk 0:08:39.5]} 16. Qh4 {[%clk 0:08:30.7]}
16... Qxh4 {[%clk 0:08:25.1]} 17. Nxh4 {[%clk 0:08:31.7]} 17... Ne5 {[%clk
0:08:26.3]} 18. Rd1 {[%clk 0:08:11.7]} 18... Be7 {[%clk 0:06:22.3]} 19. Nf3
{[%clk 0:08:02.6]} 19... Nxf3 {[%clk 0:06:23.3]} 20. gxf3 {[%clk 0:08:03.1]}
20... Bh3+ {[%clk 0:06:24.3]} 21. Ke2 {[%clk 0:07:59.8]} 21... Rfe8 {[%clk
0:06:20.2]} 22. Rb1 {[%clk 0:07:02]} 22... Bg5+ {[%clk 0:06:06.6]} 23. Kd1
{[%clk 0:06:58.9]} 23... Bg2 {[%clk 0:06:06.5]} 24. Re1 {[%clk 0:06:30.7]} 24...
Bxf3+ {[%clk 0:06:05]} 25. Re2 {[%clk 0:06:32.1]} 25... Re6 {[%clk 0:05:34.4]}
0-1

[Event "GrandPrix_29.05"]
[Site "Chess.com"]
[Date "2020.05.29"]
[Round "8"]
[White "BogdanDeac"]
[Black "pheonixking2000"]
[Result "1-0"]
[WhiteElo "2470"]
[BlackElo "2485"]
[TimeControl "600+2"]
[EndTime "12:51:46 PDT"]
[Termination "BogdanDeac won by resignation"]

1. Nf3 {[%clk 0:10:01.9]} 1... Nf6 {[%clk 0:09:59.8]} 2. c4 {[%clk 0:10:02.5]}
2... e6 {[%clk 0:10:00.3]} 3. Nc3 {[%clk 0:10:02.4]} 3... d5 {[%clk 0:10:01.2]}
4. d4 {[%clk 0:10:02.9]} 4... c6 {[%clk 0:10:01]} 5. Bg5 {[%clk 0:10:02.4]} 5...
h6 {[%clk 0:10:00.3]} 6. Bxf6 {[%clk 0:10:03.3]} 6... Qxf6 {[%clk 0:10:01]} 7.
Qb3 {[%clk 0:10:04.8]} 7... Nd7 {[%clk 0:09:52.3]} 8. e4 {[%clk 0:10:03.7]} 8...
dxe4 {[%clk 0:09:29.7]} 9. Nxe4 {[%clk 0:10:03.6]} 9... Qd8 {[%clk 0:09:31.6]}
10. Bd3 {[%clk 0:09:51.8]} 10... Be7 {[%clk 0:09:32.1]} 11. O-O {[%clk
0:09:51.8]} 11... O-O {[%clk 0:09:33.7]} 12. Rad1 {[%clk 0:09:36.4]} 12... Nf6
{[%clk 0:09:27]} 13. Ne5 {[%clk 0:09:22.8]} 13... Qb6 {[%clk 0:09:24.7]} 14. Qc3
{[%clk 0:09:09.8]} 14... Rd8 {[%clk 0:09:24.6]} 15. c5 {[%clk 0:08:34.6]} 15...
Qc7 {[%clk 0:09:25.6]} 16. Nxf6+ {[%clk 0:08:33.7]} 16... Bxf6 {[%clk
0:09:23.3]} 17. Be4 {[%clk 0:06:07.1]} 17... Bd7 {[%clk 0:08:49.3]} 18. Qe3
{[%clk 0:05:29.7]} 18... Be8 {[%clk 0:08:44.2]} 19. Ng4 {[%clk 0:05:29.5]} 19...
Be7 {[%clk 0:08:39.6]} 20. Nxh6+ {[%clk 0:05:20.5]} 20... gxh6 {[%clk
0:08:38.6]} 21. Qxh6 {[%clk 0:05:22.4]} 21... f5 {[%clk 0:07:29]} 22. Qxe6+
{[%clk 0:04:48.4]} 22... Bf7 {[%clk 0:07:25.6]} 23. Qxf5 {[%clk 0:04:48]} 23...
Qd7 {[%clk 0:07:02.7]} 24. Qh7+ {[%clk 0:04:36.8]} 24... Kf8 {[%clk 0:07:02.8]}
25. Qh8+ {[%clk 0:04:33.5]} 25... Bg8 {[%clk 0:07:03.5]} 26. Qh6+ {[%clk
0:04:33.9]} 26... Kf7 {[%clk 0:07:01.4]} 27. Bg6+ {[%clk 0:04:33.5]} 27... Kf6
{[%clk 0:07:02.5]} 28. Be8+ {[%clk 0:04:29.6]} 1-0

[Event "GrandPrix_29.05"]
[Site "Chess.com"]
[Date "2020.05.29"]
[Round "8"]
[White "Khvicha_Supatashvili"]
[Black "nurgyulsalimova"]
[Result "1-0"]
[WhiteElo "2132"]
[BlackElo "2117"]
[TimeControl "600+2"]
[EndTime "12:51:53 PDT"]
[Termination "Khvicha_Supatashvili won by resignation"]

1. d4 {[%clk 0:10:01.9]} 1... Nf6 {[%clk 0:09:59.3]} 2. c4 {[%clk 0:10:02.7]}
2... g6 {[%clk 0:09:56.7]} 3. Nc3 {[%clk 0:10:03.1]} 3... d5 {[%clk 0:09:56.1]}
4. cxd5 {[%clk 0:10:02.1]} 4... Nxd5 {[%clk 0:09:57.5]} 5. e4 {[%clk 0:10:03.3]}
5... Nxc3 {[%clk 0:09:57.9]} 6. bxc3 {[%clk 0:10:04.7]} 6... Bg7 {[%clk
0:09:59.1]} 7. Bg5 {[%clk 0:10:05.2]} 7... c5 {[%clk 0:09:50.9]} 8. Rc1 {[%clk
0:10:01.1]} 8... O-O {[%clk 0:09:41.1]} 9. Nf3 {[%clk 0:09:55.3]} 9... b6 {[%clk
0:09:22.2]} 10. d5 {[%clk 0:09:36.5]} 10... Bg4 {[%clk 0:07:30.9]} 11. Be2
{[%clk 0:09:24.2]} 11... h6 {[%clk 0:07:25.4]} 12. Bh4 {[%clk 0:09:16.5]} 12...
Nd7 {[%clk 0:06:29.8]} 13. O-O {[%clk 0:09:11]} 13... Nf6 {[%clk 0:06:21]} 14.
Ne5 {[%clk 0:08:58]} 14... Bd7 {[%clk 0:05:28.7]} 15. Nxd7 {[%clk 0:08:53.8]}
15... Qxd7 {[%clk 0:05:21.4]} 16. e5 {[%clk 0:08:12]} 16... Nh7 {[%clk
0:05:11.6]} 17. f4 {[%clk 0:08:05.3]} 17... f6 {[%clk 0:04:55.6]} 18. e6 {[%clk
0:07:52.1]} 18... Qd6 {[%clk 0:04:56.1]} 19. f5 {[%clk 0:07:51.8]} 19... Rad8
{[%clk 0:04:51.4]} 20. c4 {[%clk 0:07:50.7]} 20... Qe5 {[%clk 0:04:45.5]} 21.
fxg6 {[%clk 0:07:16.4]} 21... Ng5 {[%clk 0:04:46]} 22. Bg3 {[%clk 0:07:12.5]}
22... Qe3+ {[%clk 0:04:46.7]} 23. Bf2 {[%clk 0:07:13]} 23... Qe4 {[%clk
0:04:43.3]} 24. Bd3 {[%clk 0:07:12.9]} 24... Qe5 {[%clk 0:04:44.2]} 25. Re1
{[%clk 0:06:57.7]} 25... Qf4 {[%clk 0:04:23]} 26. h4 {[%clk 0:06:56.1]} 1-0

[Event "GrandPrix_29.05"]
[Site "Chess.com"]
[Date "2020.05.29"]
[Round "8"]
[White "ZverevLev"]
[Black "Bestromano"]
[Result "0-1"]
[WhiteElo "2174"]
[BlackElo "2209"]
[TimeControl "600+2"]
[EndTime "12:52:06 PDT"]
[Termination "Bestromano won by resignation"]

1. e4 {[%clk 0:10:01.6]} 1... c5 {[%clk 0:10:00.9]} 2. Nf3 {[%clk 0:10:01.6]}
2... g6 {[%clk 0:10:01.9]} 3. d4 {[%clk 0:10:01.3]} 3... cxd4 {[%clk 0:10:03.8]}
4. Nxd4 {[%clk 0:10:02.1]} 4... Nc6 {[%clk 0:10:05.3]} 5. Nc3 {[%clk 0:10:02.4]}
5... Bg7 {[%clk 0:10:06.8]} 6. Be3 {[%clk 0:10:02.9]} 6... Nf6 {[%clk
0:10:08.3]} 7. Bc4 {[%clk 0:10:01.7]} 7... O-O {[%clk 0:10:09.6]} 8. Bb3 {[%clk
0:10:02.6]} 8... d6 {[%clk 0:10:10.9]} 9. f3 {[%clk 0:10:02.5]} 9... Nxd4 {[%clk
0:10:12.2]} 10. Bxd4 {[%clk 0:10:02.7]} 10... Be6 {[%clk 0:10:13.9]} 11. Qd2
{[%clk 0:10:02.5]} 11... Qa5 {[%clk 0:10:14.7]} 12. h4 {[%clk 0:09:52.2]} 12...
Bxb3 {[%clk 0:10:10.5]} 13. cxb3 {[%clk 0:09:51.8]} 13... Rac8 {[%clk
0:09:51.4]} 14. h5 {[%clk 0:09:39.7]} 14... Nxh5 {[%clk 0:09:43.6]} 15. Bxg7
{[%clk 0:09:35.7]} 15... Kxg7 {[%clk 0:09:45.5]} 16. g4 {[%clk 0:09:35.8]} 16...
Nf6 {[%clk 0:09:45.2]} 17. Qh6+ {[%clk 0:09:31.6]} 17... Kg8 {[%clk 0:09:45.8]}
18. Ke2 {[%clk 0:09:24]} 18... Rc5 {[%clk 0:08:21.4]} 19. Rad1 {[%clk
0:09:06.3]} 19... Rxc3 {[%clk 0:05:49]} 20. bxc3 {[%clk 0:09:01.1]} 20... Qxa2+
{[%clk 0:05:47.3]} 21. Rd2 {[%clk 0:08:57.1]} 21... Qxb3 {[%clk 0:05:49.2]} 22.
Qe3 {[%clk 0:08:33.4]} 22... Rc8 {[%clk 0:05:30.8]} 23. Rc1 {[%clk 0:08:26.3]}
23... Rc5 {[%clk 0:05:07.1]} 24. Kf2 {[%clk 0:08:23.4]} 24... a5 {[%clk
0:04:51.1]} 25. Kg3 {[%clk 0:08:23.3]} 25... a4 {[%clk 0:04:35.5]} 26. Rh2
{[%clk 0:08:19.2]} 26... Qe6 {[%clk 0:04:04.7]} 27. Rch1 {[%clk 0:08:04.1]}
27... Qe5+ {[%clk 0:04:00]} 28. Qf4 {[%clk 0:07:41]} 28... Nxe4+ {[%clk
0:03:46.2]} 0-1

[Event "GrandPrix_29.05"]
[Site "Chess.com"]
[Date "2020.05.29"]
[Round "8"]
[White "Ave_Mariia"]
[Black "DarkAlekhine"]
[Result "1-0"]
[WhiteElo "2166"]
[BlackElo "2022"]
[TimeControl "600+2"]
[EndTime "12:52:17 PDT"]
[Termination "Ave_Mariia won by resignation"]

1. c4 {[%clk 0:10:01.9]} 1... g6 {[%clk 0:09:59.3]} 2. g3 {[%clk 0:09:59.4]}
2... Bg7 {[%clk 0:10:00.6]} 3. Bg2 {[%clk 0:10:00.5]} 3... Nf6 {[%clk
0:10:02.2]} 4. Nc3 {[%clk 0:09:59.7]} 4... O-O {[%clk 0:10:03.6]} 5. Nf3 {[%clk
0:09:58.2]} 5... d6 {[%clk 0:10:04.3]} 6. O-O {[%clk 0:09:59]} 6... Nc6 {[%clk
0:10:01.6]} 7. d3 {[%clk 0:09:55.3]} 7... e5 {[%clk 0:10:01.7]} 8. Rb1 {[%clk
0:09:54.6]} 8... a5 {[%clk 0:10:02]} 9. a3 {[%clk 0:09:55.8]} 9... Re8 {[%clk
0:10:02.8]} 10. b4 {[%clk 0:09:23.4]} 10... axb4 {[%clk 0:10:03.2]} 11. axb4
{[%clk 0:09:25.3]} 11... e4 {[%clk 0:10:04.4]} 12. dxe4 {[%clk 0:09:24.7]} 12...
Nxe4 {[%clk 0:10:06.3]} 13. Nxe4 {[%clk 0:09:25.7]} 13... Rxe4 {[%clk
0:10:08.2]} 14. b5 {[%clk 0:09:12.2]} 14... Nd4 {[%clk 0:09:40.1]} 15. Nxd4
{[%clk 0:09:10.5]} 15... Rxd4 {[%clk 0:09:41.1]} 16. Qb3 {[%clk 0:09:01.8]}
16... Be6 {[%clk 0:08:10.8]} 17. Bxb7 {[%clk 0:08:17.1]} 17... Bxc4 {[%clk
0:08:06]} 18. Qf3 {[%clk 0:08:02.7]} 18... Ra2 {[%clk 0:06:10.5]} 19. Bb2 {[%clk
0:08:00.4]} 19... Bxe2 {[%clk 0:06:10]} 20. Qxe2 {[%clk 0:06:48]} 20... Rb4
{[%clk 0:06:09.3]} 21. Bf6 {[%clk 0:06:41]} 21... Rxe2 {[%clk 0:05:46]} 22. Bxd8
{[%clk 0:06:41.1]} 22... Rxb1 {[%clk 0:05:44.8]} 23. Rxb1 {[%clk 0:06:43]} 23...
Bd4 {[%clk 0:05:45.9]} 24. Rf1 {[%clk 0:06:41.4]} 24... Bb6 {[%clk 0:05:46.8]}
25. Bg5 {[%clk 0:06:31.3]} 25... Kg7 {[%clk 0:05:47.6]} 26. Kg2 {[%clk
0:06:26.5]} 26... h6 {[%clk 0:05:44.7]} 27. Bc1 {[%clk 0:06:22.3]} 27... f5
{[%clk 0:05:25.8]} 28. Kf3 {[%clk 0:06:21.7]} 28... Re5 {[%clk 0:05:23.9]} 29.
Bc6 {[%clk 0:06:18.6]} 29... d5 {[%clk 0:05:00.6]} 30. Bb2 {[%clk 0:06:13.8]}
30... d4 {[%clk 0:05:01.7]} 31. Rd1 {[%clk 0:06:12.8]} 1-0

[Event "GrandPrix_29.05"]
[Site "Chess.com"]
[Date "2020.05.29"]
[Round "8"]
[White "RogerFederer13"]
[Black "Promacherr"]
[Result "1-0"]
[WhiteElo "2127"]
[BlackElo "2149"]
[TimeControl "600+2"]
[EndTime "12:52:50 PDT"]
[Termination "RogerFederer13 won by checkmate"]

1. e4 {[%clk 0:10:01.9]} 1... e6 {[%clk 0:09:56.4]} 2. d4 {[%clk 0:10:03]} 2...
d5 {[%clk 0:09:57.6]} 3. Nd2 {[%clk 0:10:03.6]} 3... c5 {[%clk 0:09:58.2]} 4.
exd5 {[%clk 0:10:04.4]} 4... Qxd5 {[%clk 0:10:00.1]} 5. Ngf3 {[%clk 0:10:05.1]}
5... cxd4 {[%clk 0:10:00.8]} 6. Bc4 {[%clk 0:10:06.1]} 6... Qd6 {[%clk
0:10:01.6]} 7. O-O {[%clk 0:10:05.1]} 7... Nf6 {[%clk 0:10:03]} 8. Nb3 {[%clk
0:10:06.1]} 8... Nc6 {[%clk 0:10:04.5]} 9. Nbxd4 {[%clk 0:10:07.1]} 9... Nxd4
{[%clk 0:10:06.4]} 10. Nxd4 {[%clk 0:10:09]} 10... a6 {[%clk 0:10:07.8]} 11. Re1
{[%clk 0:10:09.5]} 11... Qc7 {[%clk 0:10:09.3]} 12. Bb3 {[%clk 0:10:10.3]} 12...
Bd7 {[%clk 0:10:03.1]} 13. Bg5 {[%clk 0:08:57.6]} 13... O-O-O {[%clk 0:09:59.8]}
14. Qf3 {[%clk 0:08:31.3]} 14... Bd6 {[%clk 0:09:59.7]} 15. h3 {[%clk
0:07:01.2]} 15... Qc5 {[%clk 0:09:43.6]} 16. Bxf6 {[%clk 0:06:17.3]} 16... gxf6
{[%clk 0:09:45.5]} 17. Qxf6 {[%clk 0:06:08.8]} 17... Rhg8 {[%clk 0:09:44.9]} 18.
Rad1 {[%clk 0:04:40.2]} 18... Rg6 {[%clk 0:09:36.1]} 19. Qxf7 {[%clk 0:03:39.1]}
19... Rdg8 {[%clk 0:09:34.3]} 20. g4 {[%clk 0:03:25.8]} 20... Qh5 {[%clk
0:08:52.3]} 21. Qf3 {[%clk 0:02:57.6]} 21... Bc5 {[%clk 0:08:20.3]} 22. Bxe6
{[%clk 0:02:32.1]} 22... Bxe6 {[%clk 0:08:04]} 23. Nxe6 {[%clk 0:02:29.4]} 23...
Rxg4+ {[%clk 0:07:58.7]} 24. hxg4 {[%clk 0:02:28.8]} 24... Rxg4+ {[%clk
0:08:00.6]} 25. Kf1 {[%clk 0:02:30]} 25... Rg1+ {[%clk 0:08:00.5]} 26. Kxg1
{[%clk 0:02:30.8]} 26... Qxf3 {[%clk 0:08:01.3]} 27. Rd8# {[%clk 0:02:31.5]} 1-0

[Event "GrandPrix_29.05"]
[Site "Chess.com"]
[Date "2020.05.29"]
[Round "8"]
[White "Poghosyan_Suren"]
[Black "gygygygygyggygygygy"]
[Result "1-0"]
[WhiteElo "2105"]
[BlackElo "1989"]
[TimeControl "600+2"]
[EndTime "12:52:54 PDT"]
[Termination "Poghosyan_Suren won by resignation"]

1. e4 {[%clk 0:10:01.9]} 1... Nf6 {[%clk 0:09:54.9]} 2. Nc3 {[%clk 0:09:58.9]}
2... e5 {[%clk 0:09:52.2]} 3. Nf3 {[%clk 0:09:46]} 3... Nc6 {[%clk 0:09:50.8]}
4. Be2 {[%clk 0:09:44.7]} 4... d5 {[%clk 0:09:49.1]} 5. exd5 {[%clk 0:09:44.3]}
5... Nxd5 {[%clk 0:09:48.8]} 6. O-O {[%clk 0:09:46.2]} 6... Bc5 {[%clk
0:09:47.8]} 7. Re1 {[%clk 0:09:46.2]} 7... O-O {[%clk 0:09:27.8]} 8. Bc4 {[%clk
0:09:39.6]} 8... Nb6 {[%clk 0:08:56.5]} 9. Bb5 {[%clk 0:09:15.8]} 9... f6 {[%clk
0:08:07.5]} 10. Bxc6 {[%clk 0:09:01.2]} 10... bxc6 {[%clk 0:08:04.5]} 11. d3
{[%clk 0:09:03.1]} 11... Bg4 {[%clk 0:08:01.8]} 12. Ne4 {[%clk 0:09:02.7]} 12...
Be7 {[%clk 0:07:56.3]} 13. Ng3 {[%clk 0:09:01.4]} 13... Nd5 {[%clk 0:06:50.7]}
14. h3 {[%clk 0:08:59]} 14... Bc8 {[%clk 0:06:38.6]} 15. d4 {[%clk 0:08:52.8]}
15... exd4 {[%clk 0:06:03.3]} 16. Nxd4 {[%clk 0:08:54.7]} 16... Bc5 {[%clk
0:06:03.7]} 17. Nxc6 {[%clk 0:07:41.7]} 17... Qd6 {[%clk 0:05:57.5]} 18. c4
{[%clk 0:07:42.3]} 18... Bxf2+ {[%clk 0:03:52.5]} 19. Kxf2 {[%clk 0:07:29.8]}
19... Qc5+ {[%clk 0:03:26.8]} 20. Qd4 {[%clk 0:07:12.5]} 1-0

[Event "GrandPrix_29.05"]
[Site "Chess.com"]
[Date "2020.05.29"]
[Round "8"]
[White "Sakkcapak"]
[Black "TheEternalPatzer"]
[Result "1-0"]
[WhiteElo "2115"]
[BlackElo "1983"]
[TimeControl "600+2"]
[EndTime "12:52:57 PDT"]
[Termination "Sakkcapak won by resignation"]

1. c4 {[%clk 0:10:01.9]} 1... e6 {[%clk 0:09:56.8]} 2. g3 {[%clk 0:10:02.5]}
2... d5 {[%clk 0:09:57]} 3. Bg2 {[%clk 0:10:02.9]} 3... Nf6 {[%clk 0:09:55.5]}
4. Nf3 {[%clk 0:10:03.5]} 4... Be7 {[%clk 0:09:40.8]} 5. O-O {[%clk 0:10:01.3]}
5... O-O {[%clk 0:09:41.4]} 6. b3 {[%clk 0:10:02.1]} 6... c5 {[%clk 0:09:32.8]}
7. cxd5 {[%clk 0:10:00.6]} 7... exd5 {[%clk 0:09:20.1]} 8. d4 {[%clk 0:09:58.9]}
8... Ne4 {[%clk 0:08:16.2]} 9. Bb2 {[%clk 0:09:52.4]} 9... Bf6 {[%clk
0:08:12.3]} 10. Nc3 {[%clk 0:09:40.2]} 10... Nc6 {[%clk 0:08:00.5]} 11. Nxe4
{[%clk 0:08:53.8]} 11... dxe4 {[%clk 0:07:58]} 12. Nd2 {[%clk 0:08:55.3]} 12...
Bxd4 {[%clk 0:06:34.5]} 13. Bxd4 {[%clk 0:08:52.8]} 13... cxd4 {[%clk
0:06:36.4]} 14. Nxe4 {[%clk 0:08:52.4]} 14... Re8 {[%clk 0:06:26.5]} 15. Re1
{[%clk 0:08:30.1]} 15... Bf5 {[%clk 0:06:16.7]} 16. Nc5 {[%clk 0:08:27.5]} 16...
Qb6 {[%clk 0:05:23.6]} 17. Rc1 {[%clk 0:08:27.3]} 17... Rac8 {[%clk 0:05:23.7]}
18. Qd2 {[%clk 0:08:21.2]} 18... Red8 {[%clk 0:05:15.2]} 19. Qg5 {[%clk
0:08:01.9]} 19... Bg6 {[%clk 0:04:59.6]} 20. Nxb7 {[%clk 0:07:46.1]} 20... h6
{[%clk 0:04:33]} 21. Rxc6 {[%clk 0:07:02.7]} 21... Rxc6 {[%clk 0:04:21.3]} 22.
Qxd8+ {[%clk 0:07:02.4]} 22... Qxd8 {[%clk 0:04:15.2]} 23. Nxd8 {[%clk
0:07:04.3]} 23... Rc2 {[%clk 0:04:06.8]} 24. Nc6 {[%clk 0:07:02.2]} 24... Rxa2
{[%clk 0:03:58.3]} 25. Ne7+ {[%clk 0:06:55.4]} 25... Kh7 {[%clk 0:03:57.7]} 26.
Nxg6 {[%clk 0:06:56.5]} 26... fxg6 {[%clk 0:03:59.6]} 27. Bd5 {[%clk 0:06:51]}
27... h5 {[%clk 0:03:47.7]} 28. Bc4 {[%clk 0:06:45.9]} 28... a5 {[%clk
0:03:43.5]} 29. Rd1 {[%clk 0:06:43.6]} 1-0

[Event "GrandPrix_29.05"]
[Site "Chess.com"]
[Date "2020.05.29"]
[Round "8"]
[White "Alexander_Moskalenko"]
[Black "Bulldog167"]
[Result "1-0"]
[WhiteElo "2431"]
[BlackElo "2394"]
[TimeControl "600+2"]
[EndTime "12:53:30 PDT"]
[Termination "Alexander_Moskalenko won by resignation"]

1. e4 {[%clk 0:10:01.9]} 1... e5 {[%clk 0:09:53.6]} 2. Nf3 {[%clk 0:10:00.9]}
2... Nc6 {[%clk 0:09:54.7]} 3. Nc3 {[%clk 0:10:00.6]} 3... Nf6 {[%clk
0:09:55.3]} 4. d4 {[%clk 0:10:00.5]} 4... exd4 {[%clk 0:09:56.3]} 5. Nxd4 {[%clk
0:10:02.4]} 5... Bb4 {[%clk 0:09:57.1]} 6. Nxc6 {[%clk 0:10:00.8]} 6... bxc6
{[%clk 0:09:58.4]} 7. Bd3 {[%clk 0:10:02.3]} 7... d5 {[%clk 0:09:56.2]} 8. exd5
{[%clk 0:10:03]} 8... O-O {[%clk 0:09:56.8]} 9. O-O {[%clk 0:10:02.5]} 9... cxd5
{[%clk 0:09:53]} 10. h3 {[%clk 0:10:03.4]} 10... c6 {[%clk 0:09:48.1]} 11. Qf3
{[%clk 0:10:03.9]} 11... Re8 {[%clk 0:09:43.3]} 12. Bf4 {[%clk 0:10:02.5]} 12...
Bd6 {[%clk 0:09:41.7]} 13. Rfe1 {[%clk 0:09:52.8]} 13... Be6 {[%clk 0:09:27.3]}
14. Ne2 {[%clk 0:09:48.7]} 14... c5 {[%clk 0:09:22.1]} 15. Rad1 {[%clk
0:09:49.2]} 15... Qc7 {[%clk 0:07:24.6]} 16. c3 {[%clk 0:09:36.4]} 16... Rab8
{[%clk 0:07:15.6]} 17. b3 {[%clk 0:09:35.2]} 17... a5 {[%clk 0:07:01.1]} 18. Bc2
{[%clk 0:09:28.2]} 18... a4 {[%clk 0:06:07.2]} 19. Bg5 {[%clk 0:09:07.5]} 19...
axb3 {[%clk 0:05:54.4]} 20. axb3 {[%clk 0:09:05.3]} 20... Ne4 {[%clk 0:05:53.1]}
21. Bf4 {[%clk 0:08:44.1]} 21... Nxc3 {[%clk 0:04:36.3]} 22. Nxc3 {[%clk
0:08:10.1]} 22... Bxf4 {[%clk 0:04:37.2]} 23. Nxd5 {[%clk 0:07:53.5]} 23... Bxd5
{[%clk 0:04:34.1]} 24. Qxd5 {[%clk 0:07:48.7]} 24... g6 {[%clk 0:04:18.1]} 25.
g3 {[%clk 0:07:46.4]} 25... Rxe1+ {[%clk 0:02:58.2]} 26. Rxe1 {[%clk 0:07:48.3]}
26... Bxg3 {[%clk 0:02:59.4]} 27. fxg3 {[%clk 0:07:27.9]} 27... Qxg3+ {[%clk
0:03:01.3]} 28. Kf1 {[%clk 0:07:29]} 28... Rb4 {[%clk 0:02:46.6]} 29. Re8+
{[%clk 0:07:21.7]} 29... Kg7 {[%clk 0:02:46.6]} 30. Qe5+ {[%clk 0:07:23.6]}
30... Qxe5 {[%clk 0:02:44.8]} 31. Rxe5 {[%clk 0:07:25.5]} 31... c4 {[%clk
0:02:46.2]} 32. Re4 {[%clk 0:07:22.5]} 1-0